[Event "Titled Tuesday Blitz February 14 Late 2023"]
[White "Makridis, Dimitrios"]
[Black "Livaic, Leon"]
[WhiteFideId "25864475"]
[BlackFideId "14531534"]
[WhiteElo "2356"]
[BlackElo "2579"]
[Result "1-0"]
[Round "09"]
[TimeControl "180+2"]
[Date "2023.02.14"]
[WhiteClock "0:00:06"]
[BlackClock "0:00:27"]

1. e4 {[%clk 0:03:00]}  e6 {[%clk 0:03:00]} 2. d4 {[%clk 0:02:59]}  d5 {[%clk 0:03:01]} 3. Nc3 {[%clk 0:02:59]}  Bb4 {[%clk 0:03:01]} 4. e5 {[%clk 0:02:59]}  c5 {[%clk 0:03:02]} 5. a3 {[%clk 0:02:59]}  Bxc3+ {[%clk 0:03:03]} 6. bxc3 {[%clk 0:03:00]}  Ne7 {[%clk 0:03:03]} 7. h4 {[%clk 0:02:59]}  Qa5 {[%clk 0:03:03]} 8. Bd2 {[%clk 0:02:59]}  Nbc6 {[%clk 0:03:03]} 9. Qg4 {[%clk 0:02:54]}  Rg8 {[%clk 0:02:55]} 10. Nf3 {[%clk 0:02:50]}  Qa4 {[%clk 0:02:51]} 11. Bd3 {[%clk 0:02:37]}  Nf5 {[%clk 0:02:51]} 12. Bxf5 {[%clk 0:02:26]}  exf5 {[%clk 0:02:51]} 13. Qg3 {[%clk 0:02:25]}  Be6 {[%clk 0:02:37]} 14. O-O {[%clk 0:02:18]}  c4 {[%clk 0:02:27]} 15. Ra2 {[%clk 0:02:14]}  O-O-O {[%clk 0:02:27]} 16. Rb1 {[%clk 0:02:12]}  h6 {[%clk 0:02:26]} 17. Kf1 {[%clk 0:01:15]}  b6 {[%clk 0:02:23]} 18. Qf4 {[%clk 0:01:14]}  Rh8 {[%clk 0:02:19]} 19. Be1 {[%clk 0:00:56]}  Rdg8 {[%clk 0:02:18]} 20. Bd2 {[%clk 0:00:51]}  g5 {[%clk 0:02:15]} 21. Qh2 {[%clk 0:00:31]}  f4 {[%clk 0:02:15]} 22. g3 {[%clk 0:00:16]}  Bf5 {[%clk 0:01:15]} 23. Ne1 {[%clk 0:00:12]}  f3 {[%clk 0:00:59]} 24. Nxf3 {[%clk 0:00:10]}  Bxc2 {[%clk 0:00:59]} 25. Rc1 {[%clk 0:00:10]}  Be4 {[%clk 0:00:55]} 26. Ne1 {[%clk 0:00:09]}  Nd8 {[%clk 0:00:54]} 27. h5 {[%clk 0:00:07]}  Ne6 {[%clk 0:00:54]} 28. g4 {[%clk 0:00:07]}  Rf8 {[%clk 0:00:51]} 29. f3 {[%clk 0:00:07]}  Bh7 {[%clk 0:00:52]} 30. Kg1 {[%clk 0:00:07]}  Qd7 {[%clk 0:00:51]} 31. a4 {[%clk 0:00:06]}  f5 {[%clk 0:00:48]} 32. exf6 {[%clk 0:00:07]}  Rxf6 {[%clk 0:00:49]} 33. a5 {[%clk 0:00:08]}  b5 {[%clk 0:00:47]} 34. a6 {[%clk 0:00:08]}  Qc7 {[%clk 0:00:43]} 35. Rb2 {[%clk 0:00:08]}  Qxh2+ {[%clk 0:00:43]} 36. Kxh2 {[%clk 0:00:08]}  Nc7 {[%clk 0:00:43]} 37. Ra1 {[%clk 0:00:07]}  Re8 {[%clk 0:00:43]} 38. Kg3 {[%clk 0:00:04]}  Re2 {[%clk 0:00:42]} 39. Bxg5 {[%clk 0:00:04]}  Rxe1 {[%clk 0:00:27]} 40. Rxe1 {[%clk 0:00:03]}  hxg5 {[%clk 0:00:28]} 41. Re7 {[%clk 0:00:03]}  Bd3 {[%clk 0:00:28]} 42. Rh2 {[%clk 0:00:02]}  b4 {[%clk 0:00:26]} 43. cxb4 {[%clk 0:00:01]}  c3 {[%clk 0:00:26]} 44. Rg7 {[%clk 0:00:02]}  c2 {[%clk 0:00:26]} 45. Rh1 {[%clk 0:00:02]}  Rxf3+ {[%clk 0:00:25]} 46. Kxf3 {[%clk 0:00:03]}  Be4+ {[%clk 0:00:25]} 47. Ke2 {[%clk 0:00:03]}  Bxh1 {[%clk 0:00:26]} 48. Kd2 {[%clk 0:00:04]}  Be4 {[%clk 0:00:27]} 49. h6 {[%clk 0:00:04]}  Ne6 {[%clk 0:00:27]} 50. h7 {[%clk 0:00:05]}  Bxh7 {[%clk 0:00:26]} 51. Rxh7 {[%clk 0:00:06]}  Nxd4 {[%clk 0:00:27]} 52. Rxa7 {[%clk 0:00:05]}  Kb8 {[%clk 0:00:27]} 53. Rb7+ {[%clk 0:00:05]}  Ka8 {[%clk 0:00:27]} 54. b5 {[%clk 0:00:06]} 1-0


[Site "https://www.chess.com"]

[Event "Titled Tuesday Blitz February 14 Late 2023"]
[White "Sjugirov, Sanan"]
[Black "Mekhitarian, Krikor Sevag"]
[WhiteFideId "4189302"]
[BlackFideId "2107660"]
[WhiteElo "2712"]
[BlackElo "2537"]
[Result "1-0"]
[Round "09"]
[TimeControl "180+2"]
[Date "2023.02.14"]
[WhiteClock "0:00:04"]
[BlackClock "0:00:01"]

1. d4 {[%clk 0:03:00]}  Nf6 {[%clk 0:02:59]} 2. c4 {[%clk 0:03:01]}  g6 {[%clk 0:03:00]} 3. Nc3 {[%clk 0:03:01]}  d5 {[%clk 0:03:00]} 4. cxd5 {[%clk 0:03:02]}  Nxd5 {[%clk 0:03:01]} 5. e4 {[%clk 0:03:02]}  Nxc3 {[%clk 0:03:01]} 6. bxc3 {[%clk 0:03:03]}  Bg7 {[%clk 0:03:02]} 7. Bc4 {[%clk 0:03:04]}  c5 {[%clk 0:03:02]} 8. Ne2 {[%clk 0:03:05]}  O-O {[%clk 0:03:03]} 9. O-O {[%clk 0:03:04]}  Nc6 {[%clk 0:03:03]} 10. Be3 {[%clk 0:03:05]}  Bg4 {[%clk 0:03:03]} 11. f3 {[%clk 0:03:04]}  Bd7 {[%clk 0:03:04]} 12. Rb1 {[%clk 0:03:01]}  Qc7 {[%clk 0:03:00]} 13. Bd3 {[%clk 0:02:57]}  Rad8 {[%clk 0:02:50]} 14. Qd2 {[%clk 0:02:45]}  Bc8 {[%clk 0:02:49]} 15. d5 {[%clk 0:02:36]}  Ne5 {[%clk 0:02:47]} 16. c4 {[%clk 0:02:34]}  e6 {[%clk 0:02:34]} 17. Nc3 {[%clk 0:02:28]}  b6 {[%clk 0:02:31]} 18. Be2 {[%clk 0:02:25]}  f5 {[%clk 0:02:24]} 19. f4 {[%clk 0:02:14]}  Ng4 {[%clk 0:01:52]} 20. Bxg4 {[%clk 0:02:14]}  fxg4 {[%clk 0:01:53]} 21. e5 {[%clk 0:02:10]}  Bb7 {[%clk 0:01:53]} 22. Nb5 {[%clk 0:02:02]}  Qf7 {[%clk 0:01:33]} 23. Nd6 {[%clk 0:01:52]}  Rxd6 {[%clk 0:01:11]} 24. exd6 {[%clk 0:01:53]}  exd5 {[%clk 0:01:12]} 25. cxd5 {[%clk 0:01:34]}  Rd8 {[%clk 0:01:12]} 26. f5 {[%clk 0:01:31]}  Rxd6 {[%clk 0:01:09]} 27. fxg6 {[%clk 0:00:36]}  Qxg6 {[%clk 0:01:04]} 28. Bf4 {[%clk 0:00:28]}  Rxd5 {[%clk 0:01:03]} 29. Qe2 {[%clk 0:00:29]}  Rd7 {[%clk 0:00:55]} 30. Rbe1 {[%clk 0:00:26]}  Bd4+ {[%clk 0:00:49]} 31. Kh1 {[%clk 0:00:26]}  h5 {[%clk 0:00:47]} 32. Be5 {[%clk 0:00:22]}  Re7 {[%clk 0:00:45]} 33. Qc4+ {[%clk 0:00:21]}  Qe6 {[%clk 0:00:33]} 34. Qxe6+ {[%clk 0:00:22]}  Rxe6 {[%clk 0:00:34]} 35. Bxd4 {[%clk 0:00:22]}  Rxe1 {[%clk 0:00:34]} 36. Rxe1 {[%clk 0:00:23]}  cxd4 {[%clk 0:00:35]} 37. Rd1 {[%clk 0:00:24]}  Kf7 {[%clk 0:00:29]} 38. Rxd4 {[%clk 0:00:23]}  Ke6 {[%clk 0:00:30]} 39. Kg1 {[%clk 0:00:22]}  Bd5 {[%clk 0:00:26]} 40. a3 {[%clk 0:00:22]}  a5 {[%clk 0:00:25]} 41. Kf2 {[%clk 0:00:22]}  Ke5 {[%clk 0:00:26]} 42. Rd1 {[%clk 0:00:20]}  b5 {[%clk 0:00:26]} 43. Rb1 {[%clk 0:00:18]}  Bc4 {[%clk 0:00:18]} 44. Ke3 {[%clk 0:00:18]}  Kd5 {[%clk 0:00:19]} 45. Kd2 {[%clk 0:00:14]}  h4 {[%clk 0:00:13]} 46. Ke3 {[%clk 0:00:13]}  Ke5 {[%clk 0:00:12]} 47. g3 {[%clk 0:00:12]}  hxg3 {[%clk 0:00:11]} 48. hxg3 {[%clk 0:00:13]}  Kd5 {[%clk 0:00:09]} 49. Rb2 {[%clk 0:00:11]}  Kc5 {[%clk 0:00:07]} 50. Rh2 {[%clk 0:00:07]}  b4 {[%clk 0:00:06]} 51. Rh5+ {[%clk 0:00:07]}  Bd5 {[%clk 0:00:07]} 52. axb4+ {[%clk 0:00:07]}  axb4 {[%clk 0:00:07]} 53. Kd3 {[%clk 0:00:07]}  Kc6 {[%clk 0:00:02]} 54. Kd4 {[%clk 0:00:07]}  Bf3 {[%clk 0:00:01]} 55. Rc5+ {[%clk 0:00:07]}  Kb6 {[%clk 0:00:02]} 56. Kc4 {[%clk 0:00:06]}  b3 {[%clk 0:00:02]} 57. Rb5+ {[%clk 0:00:04]}  Kc6 {[%clk 0:00:03]} 58. Rb8 {[%clk 0:00:04]}  Bd5+ {[%clk 0:00:02]} 59. Kd4 {[%clk 0:00:05]}  Be6 {[%clk 0:00:02]} 60. Rb4 {[%clk 0:00:04]}  Kd6 {[%clk 0:00:02]} 61. Rb6+ {[%clk 0:00:04]}  Ke7 {[%clk 0:00:03]} 62. Ke5 {[%clk 0:00:04]}  Bc4 {[%clk 0:00:03]} 63. Rb4 {[%clk 0:00:04]}  Bf7 {[%clk 0:00:01]} 64. Rxg4 {[%clk 0:00:04]}  b2 {[%clk 0:00:01]} 65. Rb4 {[%clk 0:00:04]} 1-0


[Site "https://www.chess.com"]

[Event "Titled Tuesday Blitz February 14 Late 2023"]
[White "Goltsev, Dmitry"]
[Black "Indjic, Aleksandar"]
[WhiteFideId "24176710"]
[BlackFideId "911925"]
[WhiteElo "2269"]
[BlackElo "2618"]
[Result "1/2-1/2"]
[Round "09"]
[TimeControl "180+2"]
[Date "2023.02.14"]
[WhiteClock "0:01:01"]
[BlackClock "0:01:03"]

1. e4 {[%clk 0:03:00]}  e5 {[%clk 0:02:59]} 2. Nf3 {[%clk 0:03:00]}  Nc6 {[%clk 0:03:00]} 3. Bb5 {[%clk 0:03:01]}  Nf6 {[%clk 0:03:00]} 4. O-O {[%clk 0:03:01]}  Nxe4 {[%clk 0:03:00]} 5. d4 {[%clk 0:03:01]}  Nd6 {[%clk 0:03:00]} 6. Bxc6 {[%clk 0:03:01]}  dxc6 {[%clk 0:03:01]} 7. dxe5 {[%clk 0:03:02]}  Nf5 {[%clk 0:03:01]} 8. Qxd8+ {[%clk 0:03:03]}  Kxd8 {[%clk 0:03:02]} 9. Rd1+ {[%clk 0:03:04]}  Ke8 {[%clk 0:03:01]} 10. Bg5 {[%clk 0:03:05]}  Be6 {[%clk 0:02:57]} 11. Nc3 {[%clk 0:03:04]}  h6 {[%clk 0:02:56]} 12. Bf4 {[%clk 0:03:01]}  Be7 {[%clk 0:02:54]} 13. b3 {[%clk 0:03:00]}  Nh4 {[%clk 0:02:53]} 14. Nxh4 {[%clk 0:02:57]}  Bxh4 {[%clk 0:02:54]} 15. Ne4 {[%clk 0:02:53]}  b6 {[%clk 0:02:52]} 16. c4 {[%clk 0:02:53]}  Rd8 {[%clk 0:02:51]} 17. Rxd8+ {[%clk 0:02:51]}  Kxd8 {[%clk 0:02:50]} 18. Rd1+ {[%clk 0:02:52]}  Kc8 {[%clk 0:02:49]} 19. Be3 {[%clk 0:02:45]}  Be7 {[%clk 0:02:45]} 20. h3 {[%clk 0:02:42]}  a5 {[%clk 0:02:44]} 21. f4 {[%clk 0:02:36]}  h5 {[%clk 0:02:41]} 22. Ng5 {[%clk 0:02:34]}  Bxg5 {[%clk 0:02:40]} 23. fxg5 {[%clk 0:02:34]}  c5 {[%clk 0:02:40]} 24. Kf2 {[%clk 0:02:33]}  a4 {[%clk 0:02:38]} 25. Ke2 {[%clk 0:02:22]}  Kb7 {[%clk 0:02:37]} 26. Kd2 {[%clk 0:02:19]}  axb3 {[%clk 0:02:25]} 27. axb3 {[%clk 0:02:20]}  Ra8 {[%clk 0:02:24]} 28. Rc1 {[%clk 0:02:20]}  Bf5 {[%clk 0:02:13]} 29. Kc3 {[%clk 0:02:07]}  Rd8 {[%clk 0:02:09]} 30. Kb2 {[%clk 0:02:03]}  Be4 {[%clk 0:01:57]} 31. g3 {[%clk 0:02:02]}  g6 {[%clk 0:01:54]} 32. h4 {[%clk 0:02:01]}  Kc6 {[%clk 0:01:51]} 33. Bf4 {[%clk 0:01:57]}  Bf5 {[%clk 0:01:51]} 34. Be3 {[%clk 0:01:42]}  Re8 {[%clk 0:01:48]} 35. Bf4 {[%clk 0:01:42]}  Kd7 {[%clk 0:01:48]} 36. Rd1+ {[%clk 0:01:39]}  Ke6 {[%clk 0:01:48]} 37. Rd2 {[%clk 0:01:40]}  Be4 {[%clk 0:01:46]} 38. Rd1 {[%clk 0:01:38]}  Rb8 {[%clk 0:01:44]} 39. Rd2 {[%clk 0:01:36]}  b5 {[%clk 0:01:43]} 40. cxb5 {[%clk 0:01:31]}  Rxb5 {[%clk 0:01:44]} 41. Kc3 {[%clk 0:01:31]}  Bd5 {[%clk 0:01:43]} 42. Rb2 {[%clk 0:01:32]}  Kf5 {[%clk 0:01:39]} 43. b4 {[%clk 0:01:31]}  Be6 {[%clk 0:01:39]} 44. bxc5 {[%clk 0:01:10]}  Rxc5+ {[%clk 0:01:40]} 45. Kd2 {[%clk 0:01:09]}  Rc4 {[%clk 0:01:37]} 46. Rc2 {[%clk 0:01:08]}  Rxf4 {[%clk 0:01:21]} 47. gxf4 {[%clk 0:01:09]}  Kxf4 {[%clk 0:01:21]} 48. Rxc7 {[%clk 0:01:09]}  Kg4 {[%clk 0:01:20]} 49. Ke3 {[%clk 0:01:08]}  Kxh4 {[%clk 0:01:16]} 50. Kf4 {[%clk 0:01:08]}  Kh3 {[%clk 0:01:17]} 51. Rc1 {[%clk 0:01:03]}  Kg2 {[%clk 0:01:16]} 52. Rc2+ {[%clk 0:01:02]}  Kh3 {[%clk 0:01:08]} 53. Rc1 {[%clk 0:01:01]}  Kg2 {[%clk 0:01:03]} 54. Rc2+ {[%clk 0:01:01]}  Kh3 {[%clk 0:01:03]} 55. Rc1 {[%clk 0:01:01]} 1/2-1/2


[Site "https://www.chess.com"]

[Event "Titled Tuesday Blitz February 14 Late 2023"]
[White "Zhigalko, Sergei"]
[Black "Salimova, Nurgyul"]
[WhiteFideId "13502956"]
[BlackFideId "2915138"]
[WhiteElo "2572"]
[BlackElo "2391"]
[Result "1-0"]
[Round "09"]
[TimeControl "180+2"]
[Date "2023.02.14"]
[WhiteClock "0:00:04"]
[BlackClock "0:00:01"]

1. e4 {[%clk 0:03:00]}  c5 {[%clk 0:03:00]} 2. Nf3 {[%clk 0:03:00]}  d6 {[%clk 0:03:01]} 3. d4 {[%clk 0:03:01]}  cxd4 {[%clk 0:03:01]} 4. Qxd4 {[%clk 0:03:01]}  Nc6 {[%clk 0:03:00]} 5. Bb5 {[%clk 0:03:02]}  Bd7 {[%clk 0:03:00]} 6. Bxc6 {[%clk 0:03:03]}  Bxc6 {[%clk 0:02:59]} 7. Nc3 {[%clk 0:03:03]}  Nf6 {[%clk 0:02:58]} 8. Bg5 {[%clk 0:03:04]}  e6 {[%clk 0:02:58]} 9. O-O-O {[%clk 0:03:04]}  Be7 {[%clk 0:02:58]} 10. Rhe1 {[%clk 0:03:05]}  O-O {[%clk 0:02:45]} 11. Kb1 {[%clk 0:03:05]}  Qa5 {[%clk 0:02:42]} 12. Qd2 {[%clk 0:03:05]}  Qc7 {[%clk 0:02:35]} 13. Nd4 {[%clk 0:03:05]}  Rac8 {[%clk 0:02:30]} 14. f3 {[%clk 0:03:05]}  Rfd8 {[%clk 0:02:12]} 15. g4 {[%clk 0:03:04]}  a6 {[%clk 0:01:55]} 16. Nce2 {[%clk 0:03:03]}  b5 {[%clk 0:01:43]} 17. Ng3 {[%clk 0:03:03]}  a5 {[%clk 0:01:41]} 18. Rg1 {[%clk 0:03:01]}  Ne8 {[%clk 0:01:32]} 19. h4 {[%clk 0:02:58]}  Ba8 {[%clk 0:00:54]} 20. Nxb5 {[%clk 0:02:54]}  Qd7 {[%clk 0:00:52]} 21. Nd4 {[%clk 0:02:38]}  a4 {[%clk 0:00:51]} 22. a3 {[%clk 0:02:38]}  f6 {[%clk 0:00:48]} 23. Be3 {[%clk 0:02:36]}  d5 {[%clk 0:00:48]} 24. g5 {[%clk 0:02:31]}  Rb8 {[%clk 0:00:46]} 25. Ka1 {[%clk 0:02:25]}  e5 {[%clk 0:00:36]} 26. Ndf5 {[%clk 0:02:20]}  d4 {[%clk 0:00:36]} 27. gxf6 {[%clk 0:02:07]}  Bxf6 {[%clk 0:00:35]} 28. Nh5 {[%clk 0:02:04]}  Qb5 {[%clk 0:00:23]} 29. Nxf6+ {[%clk 0:01:46]}  Nxf6 {[%clk 0:00:23]} 30. Rxg7+ {[%clk 0:01:46]}  Kh8 {[%clk 0:00:24]} 31. Rb1 {[%clk 0:01:38]}  dxe3 {[%clk 0:00:23]} 32. Qg2 {[%clk 0:01:39]}  Rd7 {[%clk 0:00:14]} 33. Qg5 {[%clk 0:01:30]}  Rf8 {[%clk 0:00:04]} 34. Rg1 {[%clk 0:01:23]}  e2 {[%clk 0:00:03]} 35. Qc1 {[%clk 0:00:36]}  Qb6 {[%clk 0:00:03]} 36. Rxd7 {[%clk 0:00:31]}  Nxd7 {[%clk 0:00:04]} 37. Re1 {[%clk 0:00:32]}  Nf6 {[%clk 0:00:04]} 38. Rxe2 {[%clk 0:00:30]}  Rg8 {[%clk 0:00:05]} 39. Re1 {[%clk 0:00:27]}  Bb7 {[%clk 0:00:06]} 40. Rd1 {[%clk 0:00:27]}  Qc5 {[%clk 0:00:05]} 41. Qh6 {[%clk 0:00:27]}  Qf8 {[%clk 0:00:03]} 42. Qe3 {[%clk 0:00:25]}  Bc8 {[%clk 0:00:03]} 43. Nd6 {[%clk 0:00:23]}  Be6 {[%clk 0:00:04]} 44. Qc3 {[%clk 0:00:22]}  Nd7 {[%clk 0:00:04]} 45. Nb5 {[%clk 0:00:19]}  Qf6 {[%clk 0:00:04]} 46. Nc7 {[%clk 0:00:19]}  Bf7 {[%clk 0:00:04]} 47. b4 {[%clk 0:00:16]}  axb3 {[%clk 0:00:03]} 48. Rxd7 {[%clk 0:00:16]}  Rg1+ {[%clk 0:00:03]} 49. Kb2 {[%clk 0:00:16]}  bxc2 {[%clk 0:00:03]} 50. Kxc2 {[%clk 0:00:07]}  Qf4 {[%clk 0:00:03]} 51. Rd2 {[%clk 0:00:04]}  Qf6 {[%clk 0:00:03]} 52. Nb5 {[%clk 0:00:03]}  Bg6 {[%clk 0:00:03]} 53. Nd6 {[%clk 0:00:03]}  Qe6 {[%clk 0:00:02]} 54. Nc4 {[%clk 0:00:03]}  Bf7 {[%clk 0:00:01]} 55. Qxe5+ {[%clk 0:00:03]}  Qxe5 {[%clk 0:00:02]} 56. Nxe5 {[%clk 0:00:04]}  Be6 {[%clk 0:00:02]} 57. Rd6 {[%clk 0:00:04]}  Bh3 {[%clk 0:00:01]} 58. a4 {[%clk 0:00:04]}  Rg2+ {[%clk 0:00:01]} 59. Kb3 {[%clk 0:00:04]} 1-0


[Site "https://www.chess.com"]

[Event "Titled Tuesday Blitz February 14 Late 2023"]
[White "Jaracz, Pawel"]
[Black "Melkumyan, Hrant"]
[WhiteFideId "1102222"]
[BlackFideId "13302485"]
[WhiteElo "2467"]
[BlackElo "2645"]
[Result "0-1"]
[Round "09"]
[TimeControl "180+2"]
[Date "2023.02.14"]
[WhiteClock "0:00:01"]
[BlackClock "0:00:23"]

1. e4 {[%clk 0:03:00]}  c5 {[%clk 0:02:59]} 2. Nf3 {[%clk 0:03:00]}  Nc6 {[%clk 0:03:00]} 3. d4 {[%clk 0:02:57]}  cxd4 {[%clk 0:03:01]} 4. Nxd4 {[%clk 0:02:57]}  g6 {[%clk 0:03:01]} 5. c4 {[%clk 0:02:56]}  Nf6 {[%clk 0:03:02]} 6. Nc3 {[%clk 0:02:55]}  d6 {[%clk 0:03:02]} 7. Be2 {[%clk 0:02:50]}  Nxd4 {[%clk 0:03:02]} 8. Qxd4 {[%clk 0:02:49]}  Bg7 {[%clk 0:03:03]} 9. Be3 {[%clk 0:02:49]}  O-O {[%clk 0:03:03]} 10. Qd2 {[%clk 0:02:47]}  a5 {[%clk 0:03:04]} 11. f3 {[%clk 0:02:44]}  a4 {[%clk 0:03:04]} 12. O-O-O {[%clk 0:02:40]}  Be6 {[%clk 0:03:02]} 13. Kb1 {[%clk 0:02:35]}  Qa5 {[%clk 0:02:49]} 14. Rc1 {[%clk 0:02:34]}  Rfc8 {[%clk 0:02:48]} 15. Nb5 {[%clk 0:02:29]}  Qxd2 {[%clk 0:02:43]} 16. Bxd2 {[%clk 0:02:30]}  Nd7 {[%clk 0:02:44]} 17. Rc2 {[%clk 0:02:17]}  f5 {[%clk 0:02:32]} 18. Bd3 {[%clk 0:02:06]}  Ne5 {[%clk 0:02:28]} 19. exf5 {[%clk 0:02:05]}  gxf5 {[%clk 0:02:25]} 20. Nd4 {[%clk 0:02:03]}  Bxc4 {[%clk 0:02:01]} 21. Bxf5 {[%clk 0:01:51]}  Rc5 {[%clk 0:01:55]} 22. Bb4 {[%clk 0:01:31]}  Rc7 {[%clk 0:01:24]} 23. f4 {[%clk 0:00:59]}  Nf7 {[%clk 0:01:03]} 24. Rhc1 {[%clk 0:00:49]}  d5 {[%clk 0:00:33]} 25. Ne6 {[%clk 0:00:47]}  Rc6 {[%clk 0:00:33]} 26. Nxg7 {[%clk 0:00:41]}  Kxg7 {[%clk 0:00:34]} 27. Bxe7 {[%clk 0:00:40]}  Nh6 {[%clk 0:00:33]} 28. Rxc4 {[%clk 0:00:12]}  Rxc4 {[%clk 0:00:34]} 29. Rxc4 {[%clk 0:00:10]}  dxc4 {[%clk 0:00:35]} 30. Bd7 {[%clk 0:00:08]}  Ng8 {[%clk 0:00:28]} 31. Bh4 {[%clk 0:00:03]}  Nf6 {[%clk 0:00:28]} 32. Be6 {[%clk 0:00:03]}  b5 {[%clk 0:00:25]} 33. a3 {[%clk 0:00:03]}  Re8 {[%clk 0:00:25]} 34. f5 {[%clk 0:00:03]}  Rd8 {[%clk 0:00:25]} 35. Kc2 {[%clk 0:00:02]}  Rd4 {[%clk 0:00:23]} 36. Be1 {[%clk 0:00:02]}  Re4 {[%clk 0:00:23]} 37. Bc3 {[%clk 0:00:01]}  Re2+ {[%clk 0:00:23]} 0-1


[Site "https://www.chess.com"]

[Event "Titled Tuesday Blitz February 14 Late 2023"]
[White "EREBUNI91"]
[Black "Naroditsky, Daniel"]
[BlackFideId "2026961"]
[WhiteElo "2724"]
[BlackElo "2618"]
[Result "1/2-1/2"]
[Round "09"]
[TimeControl "180+2"]
[Date "2023.02.14"]
[WhiteClock "0:01:13"]
[BlackClock "0:00:04"]

1. e4 {[%clk 0:03:00]}  c5 {[%clk 0:02:58]} 2. Nf3 {[%clk 0:03:00]}  d6 {[%clk 0:02:59]} 3. Bb5+ {[%clk 0:02:59]}  Nd7 {[%clk 0:02:56]} 4. d4 {[%clk 0:02:58]}  cxd4 {[%clk 0:02:54]} 5. Qxd4 {[%clk 0:02:59]}  a6 {[%clk 0:02:53]} 6. Bxd7+ {[%clk 0:02:59]}  Bxd7 {[%clk 0:02:53]} 7. Nc3 {[%clk 0:02:59]}  e5 {[%clk 0:02:52]} 8. Qb4 {[%clk 0:02:59]}  Bc6 {[%clk 0:02:44]} 9. O-O {[%clk 0:02:51]}  Nf6 {[%clk 0:02:33]} 10. Bg5 {[%clk 0:02:38]}  h6 {[%clk 0:02:06]} 11. Bxf6 {[%clk 0:02:29]}  Qxf6 {[%clk 0:02:06]} 12. Rad1 {[%clk 0:02:30]}  Be7 {[%clk 0:01:40]} 13. Nd5 {[%clk 0:02:26]}  Bxd5 {[%clk 0:01:40]} 14. Rxd5 {[%clk 0:02:27]}  O-O {[%clk 0:01:40]} 15. c4 {[%clk 0:02:25]}  Rab8 {[%clk 0:01:34]} 16. a4 {[%clk 0:02:23]}  b6 {[%clk 0:01:31]} 17. Rfd1 {[%clk 0:02:16]}  Rfc8 {[%clk 0:01:31]} 18. b3 {[%clk 0:02:12]}  Qe6 {[%clk 0:01:29]} 19. Nd2 {[%clk 0:02:07]}  Rc5 {[%clk 0:01:21]} 20. Nf1 {[%clk 0:02:03]}  Qg6 {[%clk 0:00:55]} 21. f3 {[%clk 0:01:51]}  Qg5 {[%clk 0:00:44]} 22. Qc3 {[%clk 0:01:43]}  b5 {[%clk 0:00:26]} 23. Ne3 {[%clk 0:01:41]}  bxa4 {[%clk 0:00:24]} 24. bxa4 {[%clk 0:01:38]}  Rc6 {[%clk 0:00:21]} 25. Nf5 {[%clk 0:01:37]}  Bf8 {[%clk 0:00:21]} 26. a5 {[%clk 0:01:26]}  Rbc8 {[%clk 0:00:21]} 27. Nxd6 {[%clk 0:01:22]}  Bxd6 {[%clk 0:00:19]} 28. Rxd6 {[%clk 0:01:22]}  Rxc4 {[%clk 0:00:19]} 29. Rd8+ {[%clk 0:01:21]}  Rxd8 {[%clk 0:00:13]} 30. Rxd8+ {[%clk 0:01:22]}  Qxd8 {[%clk 0:00:14]} 31. Qxc4 {[%clk 0:01:22]}  Qd1+ {[%clk 0:00:10]} 32. Kf2 {[%clk 0:01:22]}  Qd2+ {[%clk 0:00:11]} 33. Kf1 {[%clk 0:01:16]}  Qd6 {[%clk 0:00:03]} 34. Qc8+ {[%clk 0:01:14]}  Kh7 {[%clk 0:00:04]} 35. Qf5+ {[%clk 0:01:13]}  Kg8 {[%clk 0:00:04]} 36. Qc8+ {[%clk 0:01:13]}  Kh7 {[%clk 0:00:05]} 37. Qf5+ {[%clk 0:01:13]}  Kh8 {[%clk 0:00:04]} 38. Qc8+ {[%clk 0:01:13]}  Kh7 {[%clk 0:00:04]} 1/2-1/2


[Site "https://www.chess.com"]

[Event "Titled Tuesday Blitz February 14 Late 2023"]
[White "Madaminov, Mukhiddin"]
[Black "Maksimovic, Bojan"]
[WhiteFideId "14210703"]
[BlackFideId "14408120"]
[WhiteElo "2422"]
[BlackElo "2486"]
[Result "1-0"]
[Round "09"]
[TimeControl "180+2"]
[Date "2023.02.14"]
[WhiteClock "0:00:05"]
[BlackClock "0:00:02"]

1. d4 {[%clk 0:02:56]}  Nf6 {[%clk 0:02:16]} 2. Nc3 {[%clk 0:02:54]}  g6 {[%clk 0:02:13]} 3. e4 {[%clk 0:02:53]}  d5 {[%clk 0:02:13]} 4. e5 {[%clk 0:02:53]}  Ne4 {[%clk 0:02:13]} 5. Nxe4 {[%clk 0:02:54]}  dxe4 {[%clk 0:02:14]} 6. f4 {[%clk 0:02:54]}  Bf5 {[%clk 0:01:47]} 7. Be3 {[%clk 0:02:51]}  h5 {[%clk 0:01:47]} 8. c4 {[%clk 0:02:49]}  e6 {[%clk 0:01:47]} 9. Ne2 {[%clk 0:02:49]}  Nc6 {[%clk 0:01:46]} 10. a3 {[%clk 0:02:45]}  f6 {[%clk 0:01:40]} 11. Nc3 {[%clk 0:02:34]}  fxe5 {[%clk 0:01:33]} 12. dxe5 {[%clk 0:02:26]}  g5 {[%clk 0:01:33]} 13. fxg5 {[%clk 0:01:35]}  Bg7 {[%clk 0:01:30]} 14. Be2 {[%clk 0:01:32]}  Qxd1+ {[%clk 0:01:29]} 15. Rxd1 {[%clk 0:01:33]}  Nxe5 {[%clk 0:01:28]} 16. Nb5 {[%clk 0:01:30]}  O-O {[%clk 0:01:19]} 17. O-O {[%clk 0:01:30]}  Nd3 {[%clk 0:01:14]} 18. Bxh5 {[%clk 0:01:22]}  Nxb2 {[%clk 0:01:06]} 19. Rd7 {[%clk 0:01:21]}  Nxc4 {[%clk 0:01:05]} 20. Bc5 {[%clk 0:01:02]}  Rfd8 {[%clk 0:01:05]} 21. Rxc7 {[%clk 0:01:00]}  Be5 {[%clk 0:00:45]} 22. Rxb7 {[%clk 0:00:51]}  Rd5 {[%clk 0:00:45]} 23. Bf7+ {[%clk 0:00:26]}  Kh8 {[%clk 0:00:44]} 24. Rxf5 {[%clk 0:00:26]}  Rxc5 {[%clk 0:00:44]} 25. Bxe6 {[%clk 0:00:26]}  Rxb5 {[%clk 0:00:09]} 26. Rxb5 {[%clk 0:00:23]}  Bd4+ {[%clk 0:00:09]} 27. Kf1 {[%clk 0:00:20]}  Nd6 {[%clk 0:00:10]} 28. Rbd5 {[%clk 0:00:19]}  Nxf5 {[%clk 0:00:10]} 29. Bxf5 {[%clk 0:00:19]}  Bb2 {[%clk 0:00:10]} 30. Bxe4 {[%clk 0:00:18]}  Bxa3 {[%clk 0:00:10]} 31. Ra5 {[%clk 0:00:13]}  Rf8+ {[%clk 0:00:10]} 32. Ke2 {[%clk 0:00:12]}  Bc1 {[%clk 0:00:08]} 33. g3 {[%clk 0:00:08]}  Re8 {[%clk 0:00:05]} 34. Kf3 {[%clk 0:00:09]}  Re7 {[%clk 0:00:04]} 35. h4 {[%clk 0:00:08]}  Bd2 {[%clk 0:00:04]} 36. Ra6 {[%clk 0:00:09]}  Rf7+ {[%clk 0:00:02]} 37. Kg4 {[%clk 0:00:08]}  Be1 {[%clk 0:00:02]} 38. Rh6+ {[%clk 0:00:06]}  Kg7 {[%clk 0:00:01]} 39. Rh7+ {[%clk 0:00:06]}  Kf8 {[%clk 0:00:02]} 40. Rxf7+ {[%clk 0:00:02]}  Kxf7 {[%clk 0:00:03]} 41. h5 {[%clk 0:00:03]}  a5 {[%clk 0:00:02]} 42. Bd5+ {[%clk 0:00:03]}  Kg7 {[%clk 0:00:01]} 43. h6+ {[%clk 0:00:04]}  Kg6 {[%clk 0:00:02]} 44. Be4+ {[%clk 0:00:04]}  Kf7 {[%clk 0:00:02]} 45. Kf5 {[%clk 0:00:04]}  Bxg3 {[%clk 0:00:02]} 46. g6+ {[%clk 0:00:05]}  Ke7 {[%clk 0:00:02]} 47. g7 {[%clk 0:00:05]}  a4 {[%clk 0:00:02]} 48. g8=Q {[%clk 0:00:05]} 1-0


[Site "https://www.chess.com"]